fUSD/lending_fUSD_20260219
["ID","MTS","AMOUNT","RATE_DAILY","PERIOD"]
[405961018,1771459907298,-517.22071442,0.00043835,120]
[405961019,1771459907324,-582.34,0.00043835,120]
[405961020,1771459907351,-500.0,0.00043835,90]
[405961021,1771459907380,-542.01795426,0.00043835,90]
[405961022,1771459907407,-519.38303739,0.00043835,120]
[405961023,1771459907436,-500.0,0.00043835,120]
[405961024,1771459907465,-225.58635056,0.00043835,120]
[405961025,1771459907492,-500.0,0.00043835,120]
[405961026,1771459907520,-500.0,0.00043835,120]
[405961027,1771459907549,-635.00459164,0.00043835,120]
[405961028,1771459907575,-630.24753706,0.00043835,120]
[405961029,1771459907606,-607.84484071,0.00043835,120]
[405961030,1771459907635,-500.0,0.00043835,120]
[405961031,1771459907665,-522.35003099,0.00043835,60]
[405961032,1771459907694,-402.22614382,0.00043835,120]
[405961033,1771459907721,-500.0,0.00043835,120]
[405961034,1771459907747,-500.0,0.00043835,120]
[405961035,1771459907773,-500.0,0.00043835,120]
[405961036,1771459907798,-500.0,0.00043835,120]
[405961037,1771459907824,-457.5,0.00043835,120]
[405961038,1771459907850,-500.0,0.00043835,120]
[405961039,1771459907876,-500.0,0.00043835,120]
[405961040,1771459907902,-500.0,0.00043835,120]
[405961041,1771459907928,-500.0,0.00043835,120]
[405961042,1771459907954,-500.0,0.00043835,120]
[405961043,1771459907982,-207.68213084,0.00043835,120]
[405961044,1771459908011,-500.0,0.00043835,120]
[405961045,1771459908039,-500.0,0.00043835,120]
[405961046,1771459908065,-500.0,0.00043835,120]
[405961047,1771459908092,-410.26,0.00043835,120]
[405961048,1771459908118,-293.12685968,0.00043835,120]
[405961049,1771459908145,-500.0,0.00043835,120]
[405961050,1771459908171,-467.40811402,0.00043835,120]
[405961051,1771459908201,-547.08588868,0.00043835,120]
[405961052,1771459908228,-525.48967267,0.00043835,120]
[405961053,1771459908257,-500.0,0.00043835,120]
[405961054,1771459908285,-198.93672675,0.00043835,120]
[405961055,1771459908311,-500.0,0.00043835,120]
[405961056,1771459908336,-500.0,0.00043835,120]
[405961057,1771459908363,-254.32336574,0.00043835,120]
[405961058,1771459908390,-500.0,0.00043835,120]
[405961059,1771459908418,-477.70679364,0.00043835,120]
[405961060,1771459908447,-507.39175845,0.00043835,120]
[405961061,1771459908479,-523.4927627,0.00043835,120]
[405961062,1771459908506,-520.55151443,0.00043835,120]
[405961063,1771459908534,-561.23952625,0.00043835,120]
[405961064,1771459908562,-509.51853042,0.00043835,120]
[405961065,1771459908592,-500.0,0.00043835,120]
[405961066,1771459908620,-498.77140453,0.00043835,120]
[405961067,1771459908650,-527.31982074,0.00043835,120]
[405961068,1771459908679,-647.59887773,0.00043835,120]
[405961069,1771459908851,-500.0,0.00043835,120]
[405961070,1771459908882,-511.46510027,0.00043835,60]
[405961071,1771459908911,-285.59629559,0.00043835,120]
[405961072,1771459908938,-602.4958823,0.00043835,120]
[405961073,1771459908967,-547.23390302,0.00043835,120]
[405961074,1771459908996,-505.98131532,0.00043835,120]
[405961075,1771459909026,-500.0,0.00043835,120]
[405961076,1771459909063,-500.0,0.00043835,120]
[405961077,1771459909093,-493.87,0.00043835,120]
[405961078,1771459909123,-548.64816315,0.00043835,120]
[405961079,1771459909151,-504.28651216,0.00043835,120]
[405961080,1771459909180,-500.0,0.00043835,120]
[405961081,1771459909210,-500.0,0.00043835,120]
[405961082,1771459909240,-295.57118894,0.00043835,120]
[405961083,1771459909271,-433.99,0.00043835,120]
[405961084,1771459909299,-464.95510858,0.00043835,120]
[405961085,1771459909329,-500.0,0.00043835,120]
[405961086,1771459909359,-347.26650559,0.00043835,120]
[405961087,1771459909388,-517.91169608,0.00043835,120]
[405961088,1771459909418,-500.0,0.00043835,120]
[405961089,1771459909448,-431.95847411,0.00043835,120]
[405961090,1771459909479,-500.0,0.00043835,120]
[405961091,1771459909511,-500.0,0.00043835,120]
[405961092,1771459909539,-358.07764286,0.00043835,120]
[405961093,1771459909567,-482.81612658,0.00043835,120]
[405961094,1771459909632,-514.34513866,0.00043835,120]
[405961095,1771459909691,-500.0,0.00043835,120]
[405961096,1771459909751,-505.24506767,0.00043835,120]
[405961097,1771459909819,-415.44043737,0.00043835,120]
[405961098,1771459909878,-509.03884488,0.00043835,120]
[405961099,1771459909937,-558.42462813,0.00043835,120]
[405961100,1771459909996,-599.74398844,0.00043835,120]
[405961101,1771459910052,-503.95893208,0.00043835,120]
[405961102,1771459910108,-500.0,0.00043835,120]
[405961103,1771459910165,-258.77180327,0.00043835,120]
[405961104,1771459910221,-504.27445202,0.00043835,120]
[405961105,1771459910275,-609.8462905,0.00043835,120]
[405961106,1771459910331,-509.16246127,0.00043835,120]
[405961107,1771459910392,-532.93914911,0.00043835,120]
[405961108,1771459910449,-500.0,0.00043835,120]
[405961109,1771459910509,-408.15894601,0.00043835,120]
[405961110,1771459910567,-510.05236279,0.00043835,120]
[405961111,1771459910627,-500.0,0.00043835,120]
[405961112,1771459910685,-438.0,0.00043835,120]
[405961113,1771459910742,-508.51866771,0.00043835,120]
[405961114,1771459910799,-157.64030097,0.00043835,120]
[405961115,1771459910857,-514.20085476,0.00043835,120]
[405961116,1771459910911,-510.56620748,0.00043835,120]
[405961117,1771459910964,-500.0,0.00043835,120]
[405961118,1771459911017,-500.0,0.00043835,120]
[405961119,1771459911073,-525.29152385,0.00043835,120]
[405961120,1771459911126,-500.0,0.00043835,120]
[405961121,1771459911178,-500.0,0.00043835,120]
[405961122,1771459911233,-500.0,0.00043835,120]
[405961123,1771459911291,-308.73,0.00043835,120]
[405961124,1771459911350,-500.0,0.00043835,120]
[405961125,1771459911409,-500.0,0.00043835,120]
[405961126,1771459911468,-543.83876078,0.00043835,120]
[405961127,1771459911534,-426.17078233,0.00043835,120]
[405961128,1771459911594,-500.0,0.00043835,120]
[405961129,1771459911655,-174.56047277,0.00043835,120]
[405961130,1771459911716,-500.0,0.00043835,120]
[405961131,1771459911780,-500.0,0.00043835,120]
[405961132,1771459911838,-341.17,0.00043835,120]
[405961133,1771459911895,-504.03056349,0.00043835,120]
[405961134,1771459911950,-514.43669219,0.00043835,120]
[405961135,1771459912004,-618.50876981,0.00043835,120]
[405961136,1771459912059,-515.0867778,0.00043835,120]
[405961137,1771459912116,-512.23381666,0.00043835,120]
[405961138,1771459912170,-500.0,0.00043835,120]
[405961139,1771459912225,-500.0,0.00043835,120]
[405961140,1771459912279,-205.97000081,0.00043835,120]
[405961141,1771459912332,-260.1013016,0.00043835,120]
[405961142,1771459912392,-518.53513392,0.00043835,120]
[405961143,1771459912448,-500.0,0.00043835,120]
[405961144,1771459912505,-511.72773165,0.00043835,120]
[405961145,1771459912563,-500.0,0.00043835,120]
[405961146,1771459912622,-521.4092814,0.00043835,120]
[405961147,1771459912679,-500.0,0.00043835,120]
[405961148,1771459912738,-324.11863786,0.00043835,120]
[405961149,1771459912792,-580.73485036,0.00043835,120]
[405961150,1771459912846,-520.46567076,0.00043835,120]
[405961151,1771459912901,-500.0,0.00043835,120]
[405961152,1771459912955,-630.56494725,0.00043835,120]
[405961153,1771459913010,-500.0,0.00043835,120]
[405961154,1771459913066,-620.20462942,0.00043835,120]
[405961155,1771459913128,-598.89236746,0.00043835,120]
[405961156,1771459913186,-561.52591601,0.00043835,120]
[405961157,1771459913467,-500.0,0.00043835,120]
[405961158,1771459913530,-188.38490895,0.00043835,120]
[405961159,1771459913592,-512.96889787,0.00043835,120]
[405961160,1771459913655,-533.85667466,0.00043835,120]
[405961161,1771459913716,-507.63058595,0.00043835,120]
[405961162,1771459913779,-574.93666834,0.00043835,120]
[405961163,1771459913837,-504.28791765,0.00043835,120]
[405961164,1771459913894,-504.35750066,0.00043835,120]
[405961165,1771459913955,-498.84487871,0.00043835,120]
[405961166,1771459914011,-500.0,0.00043835,120]
[405961167,1771459914067,-500.0,0.00043835,120]
[405961168,1771459914126,-511.65522656,0.00043835,120]
[405961169,1771459914183,-500.0,0.00043835,120]
[405961170,1771459914237,-529.86327575,0.00043835,120]
[405961171,1771459914309,-628.66614438,0.00043835,120]
[405961172,1771459914374,-625.32217414,0.00043835,120]
[405961173,1771459914434,-544.17964964,0.00043835,120]
[405961174,1771459914495,-546.33120202,0.00043835,120]
[405961175,1771459914555,-508.0209962,0.00043835,120]
[405961176,1771459914617,-511.87254501,0.00043835,120]
[405961177,1771459914677,-491.0,0.00043835,120]
[405961178,1771459914739,-500.0,0.00043835,120]
[405961179,1771459914800,-478.78779405,0.00043835,120]
[405961180,1771459914860,-511.00227104,0.00043835,120]
[405961181,1771459914920,-509.51803612,0.00043835,120]
[405961182,1771459914977,-506.80706307,0.00043835,120]
[405961183,1771459915042,-500.0,0.00043835,120]
[405961184,1771459915105,-398.51740321,0.00043835,120]
[405961185,1771459915164,-556.08964886,0.00043835,120]
[405961186,1771459915227,-500.0,0.00043835,120]
[405961187,1771459915283,-506.5696306,0.00043835,120]
[405961188,1771459915343,-500.0,0.00043835,120]
[405961189,1771459915404,-500.0,0.00043835,120]
[405961190,1771459915467,-189.51971272,0.00043835,120]
[405961191,1771459915527,-500.0,0.00043835,120]
[405961192,1771459915585,-560.04562618,0.00043835,120]
[405961193,1771459915645,-520.75655137,0.00043835,120]
[405961194,1771459915705,-508.72698378,0.00043835,120]
[405961195,1771459915765,-540.01086249,0.00043835,120]
[405961196,1771459915824,-524.52277533,0.00043835,120]
[405961197,1771459915884,-500.0,0.00043835,120]
[405961198,1771459915940,-430.99862541,0.00043835,120]
[405961199,1771459915997,-511.50552356,0.00043835,120]
[405961200,1771459916053,-500.0,0.00043835,120]
[405961201,1771459916109,-450.38665945,0.00043835,120]
[405961202,1771459916168,-539.47779042,0.00043835,120]
[405961203,1771459916226,-500.0,0.00043835,120]
[405961204,1771459916282,-466.46431146,0.00043835,120]
[405961205,1771459916342,-262.40393138,0.00043835,120]
[405961206,1771459916403,-412.88728585,0.00043835,120]
[405961207,1771459916463,-500.0,0.00043835,120]
[405961208,1771459916523,-481.0,0.00043835,120]
[405961209,1771459916583,-500.0,0.00043835,120]
[405961210,1771459916644,-219.46,0.00043835,120]
[405961211,1771459916705,-500.0,0.00043835,120]
[405961212,1771459916763,-503.74428379,0.00043835,120]
[405961213,1771459916818,-553.75646815,0.00043835,120]
[405961214,1771459916871,-647.04242475,0.00043835,120]
[405961215,1771459916923,-505.44900788,0.00043835,120]
[405961216,1771459916980,-551.05376873,0.00043835,120]
[405961217,1771459917043,-523.3502519,0.00043835,120]
[405961218,1771459917108,-500.0,0.00043835,120]
[405961219,1771459917165,-515.84623273,0.00043835,120]
[405961220,1771459917221,-432.63,0.00043835,120]
[405961221,1771459917277,-516.8141235,0.00043835,120]
[405961222,1771459917333,-518.51392181,0.00043835,120]
[405961223,1771459917391,-576.96944734,0.00043835,120]
[405961224,1771459917455,-505.06027428,0.00043835,120]
[405961225,1771459917519,-500.0,0.00043835,120]
[405961226,1771459917581,-500.0,0.00043835,120]
[405961227,1771459917645,-500.0,0.00043835,120]
[405961228,1771459917704,-500.0,0.00043835,120]
[405961229,1771459917765,-154.81623105,0.00043835,120]
[405961230,1771459917821,-500.0,0.00043835,120]
[405961231,1771459917881,-481.34515258,0.00043835,120]
[405961232,1771459917939,-510.88988323,0.00043835,120]
[405961233,1771459917995,-500.0,0.00043835,120]
[405961234,1771459918049,-314.63885282,0.00043835,120]
[405961235,1771459918102,-506.99108615,0.00043835,120]
[405961236,1771459918157,-500.0,0.00043835,120]
[405961237,1771459918211,-500.0,0.00043835,120]
[405961238,1771459918266,-500.0,0.00043835,120]
[405961239,1771459918321,-500.0,0.00043835,120]
[405961240,1771459918378,-500.0,0.00043835,120]
[405961241,1771459918440,-463.0727001,0.00043835,120]
[405961242,1771459918497,-500.0,0.00043835,120]
[405961243,1771459918556,-516.87603543,0.00043835,120]
[405961244,1771459918812,-500.0,0.00043835,120]
[405961245,1771459918872,-231.35196741,0.00043835,120]
[405961246,1771459918928,-511.52895282,0.00043835,120]
[405961247,1771459918985,-500.0,0.00043835,120]
[405961248,1771459919043,-500.0,0.00043835,120]
[405961249,1771459919099,-211.66123267,0.00043835,120]
[405961250,1771459919157,-499.81752431,0.00043835,120]
[405961251,1771459919210,-541.75811676,0.00043835,120]
[405961252,1771459919272,-511.29988543,0.00043835,120]
[405961253,1771459919331,-603.75965571,0.00043835,120]
[405961254,1771459919392,-516.79775298,0.00043835,120]
[405961255,1771459919453,-588.18489379,0.00043835,120]
[405961256,1771459919513,-645.52964463,0.00043835,120]
[405961257,1771459919572,-500.0,0.00043835,120]
[405961258,1771459919633,-500.0,0.00043835,120]
[405961259,1771459919694,-210.24200744,0.00043835,120]
[405961260,1771459919755,-533.99934671,0.00043835,120]
[405961261,1771459919816,-500.0,0.00043835,120]
[405961262,1771459919875,-500.0,0.00043835,120]
[405961263,1771459919934,-366.54231088,0.00043835,120]
[405961264,1771459919993,-500.0,0.00043835,120]
[405961265,1771459920052,-500.0,0.00043835,120]
[405961266,1771459920115,-500.0,0.00043835,120]
[405961267,1771459920174,-242.38,0.00043835,120]
[405961268,1771459920237,-500.0,0.00043835,120]
[405961269,1771459920303,-410.15630781,0.00043835,120]
[405961270,1771459920363,-507.30962973,0.00043835,120]
[405961271,1771459920425,-526.84087344,0.00043835,120]
[405961272,1771459920489,-500.63717032,0.00043835,120]
[405961273,1771459920551,-532.44892743,0.00043835,120]
[405961274,1771459920613,-559.69660756,0.00043835,120]
[405961275,1771459920679,-500.0,0.00043835,120]
[405961276,1771459920741,-500.0,0.00043835,120]
[405961277,1771459920798,-565.04349626,0.00043835,120]
[405961278,1771459920857,-500.0,0.00043835,120]
[405961279,1771459920916,-500.0,0.00043835,120]
[405961280,1771459920972,-407.94960404,0.00043835,120]
[405961281,1771459921027,-517.30483895,0.00043835,120]
[405961282,1771459921087,-500.0,0.00043835,120]
[405961283,1771459921140,-254.36149609,0.00043835,120]
[405961284,1771459921197,-500.0,0.00043835,120]
[405961285,1771459921251,-500.0,0.00043835,120]
[405961286,1771459921308,-500.0,0.00043835,120]
[405961287,1771459921366,-275.43713028,0.00043835,120]
[405961288,1771459921425,-500.0,0.00043835,120]
[405961289,1771459921484,-649.83087802,0.00043835,120]
[405961290,1771459921553,-536.00153902,0.00043835,120]
[405961291,1771459921610,-515.77618195,0.00043835,120]
[405961292,1771459921667,-397.44572104,0.00043835,120]
[405961293,1771459921722,-500.0,0.00043835,120]
[405961294,1771459921775,-500.0,0.00043835,120]
[405961295,1771459921828,-500.0,0.00043835,120]
[405961296,1771459921880,-517.72122221,0.00043835,120]
[405961297,1771459921933,-500.0,0.00043835,120]
[405961298,1771459921986,-273.08510757,0.00043835,120]
[405961299,1771459922043,-510.50796838,0.00043835,120]
[405961300,1771459922098,-500.0,0.00043835,120]
[405961301,1771459922151,-523.82981564,0.00043835,120]
[405961302,1771459922207,-510.67638111,0.00043835,120]
[405961303,1771459922259,-500.0,0.00043835,120]
[405961304,1771459922314,-500.0,0.00043835,120]
[405961305,1771459922373,-628.77650537,0.00043835,120]
[405961306,1771459922428,-500.0,0.00043835,120]
[405961307,1771459922485,-396.38241848,0.00043835,120]
[405961308,1771459922540,-580.05842936,0.00043835,120]
[405961309,1771459922598,-509.44007484,0.00043835,120]
[405961310,1771459922659,-500.0,0.00043835,120]
[405961311,1771459922729,-500.0,0.00043835,120]
[405961312,1771459922790,-263.46039176,0.00043835,120]
[405961313,1771459922851,-512.83114739,0.00043835,120]
[405961314,1771459922906,-500.0,0.00043835,120]
[405961315,1771459922961,-507.48653988,0.00043835,30]
[405961316,1771459923021,-373.91175113,0.00043835,120]
[405961317,1771459923090,-511.97708647,0.00043835,120]
[405961318,1771459923153,-539.36586599,0.00043835,120]
[405961319,1771459923213,-508.88619774,0.00043835,120]
[405961320,1771459923268,-508.05739243,0.00043835,120]
[405961321,1771459923332,-505.56991696,0.00043835,120]
[405961322,1771459923395,-510.60829333,0.00043835,120]
[405961323,1771459923454,-515.15426881,0.00043835,120]
[405961324,1771459923514,-565.8562412,0.00043835,120]
[405961325,1771459923575,-512.02548184,0.00043835,120]
[405961326,1771459923635,-500.0,0.00043835,120]
[405961327,1771459923695,-626.97009761,0.00043835,120]
[405961328,1771459923753,-500.0,0.00043835,120]
[405961329,1771459923811,-451.08480468,0.00043835,120]
[405961330,1771459923869,-536.92677159,0.00043835,120]
[405961331,1771459924080,-617.31381255,0.00043835,120]
[405961332,1771459924150,-434.30574154,0.00043835,120]
[405961333,1771459924214,-537.35015184,0.00043835,120]
[405961334,1771459924277,-552.1720179,0.00043835,120]
[405961335,1771459924353,-341.9520015,0.00043835,120]
[405961336,1771459924427,-565.48841723,0.00043835,120]
[405961337,1771459924505,-500.0,0.00043835,120]
[405961338,1771459924581,-208.22703179,0.00043835,120]
[405961339,1771459924654,-369.6521719,0.00043835,120]
[405961340,1771459924730,-594.78297078,0.00043835,120]
[405961341,1771459924803,-582.51846656,0.00043835,120]
[405961342,1771459924875,-500.0,0.00043835,120]
[405961343,1771459924949,-240.42,0.00043835,120]
[405961344,1771459925021,-550.58121563,0.00043835,120]
[405961345,1771459925095,-520.39863995,0.00043835,120]
[405961346,1771459925172,-496.56288208,0.00043835,120]
[405961347,1771459925250,-582.32213516,0.00043835,120]
[405961348,1771459925326,-553.76468515,0.00043835,120]
[405961349,1771459925424,-514.85476375,0.00043835,120]
[405961350,1771459925510,-565.06099011,0.00043835,68]
[405961351,1771459925590,-597.78319067,0.00043835,120]
[405961352,1771459925672,-525.05638061,0.00043835,120]
[405961353,1771459925755,-510.02049747,0.00043835,120]
[405961354,1771459925839,-560.46021294,0.00043835,120]
[405961355,1771459925923,-505.46713152,0.00043835,120]
[405961356,1771459926002,-528.69,0.00043835,120]
[405961357,1771459926082,-515.33062187,0.00043835,120]
[405961358,1771459926158,-558.28562089,0.00043835,120]
[405961359,1771459926239,-513.36035294,0.00043835,30]
[405961360,1771459926321,-515.42369021,0.00043835,120]
[405961361,1771459926403,-518.7487238,0.00043835,120]
[405961362,1771459926487,-514.12019334,0.00043835,120]
[405961363,1771459926576,-510.93682711,0.00043835,120]
[405961364,1771459926664,-623.27334138,0.00043835,120]
[405961365,1771459926751,-570.70946438,0.00043835,120]
[405961366,1771459926837,-500.0,0.00043835,120]
[405961367,1771459926941,-500.0,0.00043835,120]
[405961368,1771459927049,-270.09141292,0.00043835,120]
[405961369,1771459927137,-531.17899151,0.00043835,120]
[405961370,1771459927223,-522.00555028,0.00043835,120]
[405961371,1771459927312,-510.08048527,0.00043835,120]
[405961372,1771459927402,-543.47233314,0.00043835,120]
[405961373,1771459927499,-500.0,0.00043835,120]
[405961374,1771459927611,-304.74956745,0.00043835,120]
[405961375,1771459927725,-517.29545556,0.00043835,120]
[405961376,1771459927838,-504.57497705,0.00043835,120]
[405961377,1771459927932,-500.0,0.00043835,120]
[405961378,1771459928019,-517.8615117,0.00043835,120]
[405961379,1771459928133,-529.63844443,0.00043835,120]
[405961380,1771459928245,-570.31714273,0.00043835,120]
[405961381,1771459928356,-489.03219052,0.00043835,120]
[405961382,1771459928463,-557.8353475,0.00043835,120]
[405961383,1771459928551,-500.0,0.00043835,120]
[405961384,1771459928638,-500.0,0.00043835,120]
[405961385,1771459928745,-229.69620313,0.00043835,120]
[405961386,1771459928855,-500.0,0.00043835,120]
[405961387,1771459928962,-305.27772067,0.00043835,120]
[405961388,1771459929067,-267.14087282,0.00043835,120]
[405961389,1771459929173,-501.38879038,0.00043835,120]
[405961390,1771459929291,-517.40845717,0.00043835,120]
[405961391,1771459929412,-500.0,0.00043835,120]
[405961392,1771459929536,-221.7962662,0.00043835,120]
[405961393,1771459929664,-546.24039836,0.00043835,120]
[405961394,1771459929785,-566.52134059,0.00043835,120]
[405961395,1771459929897,-520.96586739,0.00043835,120]
[405961396,1771459930022,-512.96565283,0.00043835,120]
[405961397,1771459930147,-615.71188362,0.00043835,120]
[405961398,1771459930265,-525.85548168,0.00043835,120]
[405961399,1771459930391,-513.71698379,0.00043835,120]
[405961400,1771459930519,-517.69456699,0.00043835,120]
[405961401,1771459930646,-516.98784471,0.00043835,120]
[405961402,1771459930762,-529.40780225,0.00043835,120]
[405961403,1771459930880,-521.56618688,0.00043835,120]
[405961404,1771459930987,-560.08781322,0.00043835,120]
[405961405,1771459931098,-500.0,0.00043835,120]
[405961406,1771459931211,-175.10070102,0.00043835,120]
[405961407,1771459931325,-583.32614356,0.00043835,120]
[405961408,1771459931443,-511.51305999,0.00043835,120]
[405961409,1771459931559,-497.63415156,0.00043835,120]
[405961410,1771459931643,-546.01853918,0.00043835,120]
[405961411,1771459931733,-485.0,0.00043835,120]
[405961412,1771459931814,-517.94316819,0.00043835,120]
[405961413,1771459931895,-500.0,0.00043835,120]
[405961414,1771459931973,-517.18306904,0.00043835,120]
[405961415,1771459932073,-523.84717404,0.00043835,120]
[405961416,1771459932151,-520.3245181,0.00043835,120]
[405961417,1771459932224,-532.45715129,0.00043835,120]
[405961418,1771459932317,-517.81538173,0.00043835,120]
[405961419,1771459932406,-407.33128866,0.00043835,120]
[405961420,1771459932510,-647.06901745,0.00043835,120]
[405961421,1771459932606,-500.0,0.00043835,120]
[405961422,1771459932677,-328.52565833,0.00043835,120]
[405961423,1771459932742,-514.2497045,0.00043835,120]
[405961424,1771459932812,-517.44143011,0.00043835,120]
[405961425,1771459932876,-518.25808693,0.00043835,30]
[405961426,1771459932940,-516.36145072,0.00043835,120]
[405961427,1771459933005,-518.95605688,0.00043835,120]
[405961428,1771459933079,-511.41344659,0.00043835,120]
[405961429,1771459933146,-500.0,0.00043835,120]
[405961430,1771459933217,-500.0,0.00043835,120]
[405961431,1771459933286,-500.0,0.00043835,120]
[405961432,1771459933349,-524.14696864,0.00043835,120]
[405961433,1771459933414,-480.37,0.00043835,120]
[405961434,1771459933480,-499.15869126,0.00043835,120]
[405961435,1771459933545,-532.01635493,0.00043835,120]
[405961436,1771459933613,-542.53200912,0.00043835,120]
[405961437,1771459933678,-504.99306546,0.00043835,120]
[405961438,1771459933751,-500.0,0.00043835,120]
[405961439,1771459933817,-181.92577503,0.00043835,120]
[405961440,1771459933883,-516.67296919,0.00043835,120]
[405961441,1771459933950,-522.30102716,0.00043835,120]
[405961442,1771459934016,-500.0,0.00043835,120]
[405961443,1771459934079,-500.0,0.00043835,120]
[405961444,1771459934138,-444.00245985,0.00043835,120]
[405961445,1771459934198,-509.97472176,0.00043835,120]
[405961446,1771459934260,-500.0,0.00043835,120]
[405961447,1771459934654,-181.66112389,0.00043835,120]
[405961448,1771459934719,-526.60848613,0.00043835,120]
[405961449,1771459934775,-572.7683211,0.00043835,120]
[405961450,1771459934836,-524.74715526,0.00043835,120]
[405961451,1771459934889,-552.69075089,0.00043835,120]
[405961452,1771459934945,-500.0,0.00043835,120]
[405961453,1771459935002,-512.55499364,0.00043835,120]
[405961454,1771459935057,-507.80369358,0.00043835,120]
[405961455,1771459935111,-518.1716966,0.00043835,120]
[405961456,1771459935166,-504.96759921,0.00043835,120]
[405961457,1771459935221,-506.41772106,0.00043835,120]
[405961458,1771459935280,-593.90071719,0.00043835,120]
[405961459,1771459935349,-507.12151551,0.00043835,120]
[405961460,1771459935419,-500.0,0.00043835,120]
[405961461,1771459935481,-646.76773769,0.00043835,120]
[405961462,1771459935540,-504.11941107,0.00043835,120]
[405961463,1771459935600,-515.94469491,0.00043835,120]
[405961464,1771459935660,-540.34198549,0.00043835,120]
[405961465,1771459935722,-347.9968614,0.00043835,120]
[405961466,1771459935779,-599.64860628,0.00043835,120]
[405961467,1771459935842,-607.72109661,0.00043835,120]
[405961468,1771459935900,-506.20720723,0.00043835,120]
[405961469,1771459935955,-516.85656416,0.00043835,120]
[405961470,1771459936010,-517.03491351,0.00043835,120]
[405961471,1771459936065,-509.02092009,0.00043835,120]
[405961472,1771459936119,-509.94805017,0.00043835,120]
[405961473,1771459936173,-511.37073319,0.00043835,120]
[405961474,1771459936229,-500.0,0.00043835,120]
[405961475,1771459936288,-262.71928287,0.00043835,120]
[405961476,1771459936346,-512.62153397,0.00043835,120]
[405961477,1771459936405,-507.906702,0.00043835,120]
[405961478,1771459936463,-516.276106,0.00043835,120]
[405961479,1771459936524,-515.50511177,0.00043835,120]
[405961480,1771459936584,-501.6272175,0.00043835,120]
[405961481,1771459936645,-513.48781716,0.00043835,120]
[405961482,1771459936701,-520.19501319,0.00043835,120]
[405961483,1771459936759,-500.0,0.00043835,120]
[405961484,1771459936814,-171.71563859,0.00043835,120]
[405961485,1771459936869,-517.6002532,0.00043835,120]
[405961486,1771459936926,-500.0,0.00043835,120]
[405961487,1771459936983,-516.18874165,0.00043835,120]
[405961488,1771459937043,-525.26808984,0.00043835,120]
[405961489,1771459937101,-505.91274285,0.00043835,120]
[405961490,1771459937172,-500.0,0.00043835,120]
[405961491,1771459937231,-527.64839179,0.00043835,120]
[405961492,1771459937295,-511.37082496,0.00043835,120]
[405961493,1771459937358,-515.90798187,0.00043835,120]
[405961494,1771459937420,-510.76908209,0.00043835,120]
[405961495,1771459937484,-512.89422293,0.00043835,120]
[405961496,1771459937549,-405.51973928,0.00043835,120]
[405961497,1771459937610,-521.52344605,0.00043835,120]
[405961498,1771459937673,-509.51103642,0.00043835,120]
[405961499,1771459937732,-500.0,0.00043835,120]
[405961500,1771459937792,-280.08857394,0.00043835,120]
[405961501,1771459937847,-522.75119475,0.00043835,120]
[405961502,1771459937905,-500.0,0.00043835,120]
[405961503,1771459937965,-511.80829679,0.00043835,120]
[405961504,1771459938024,-507.58888896,0.00043835,120]
[405961505,1771459938085,-516.61793813,0.00043835,120]
[405961506,1771459938141,-509.73900366,0.00043835,120]
[405961507,1771459938202,-512.6090448,0.00043835,120]
[405961508,1771459938266,-516.95283498,0.00043835,120]
[405961509,1771459938326,-526.78426399,0.00043835,120]
[405961510,1771459938388,-176.89393194,0.00043835,120]
[405961511,1771459938448,-505.08778298,0.00043835,120]
[405961512,1771459938514,-506.64439689,0.00043835,120]
[405961513,1771459938573,-530.99238348,0.00043835,120]
[405961514,1771459938633,-550.30654807,0.00043835,120]
[405961515,1771459938692,-504.9327205,0.00043835,120]
[405961516,1771459938753,-495.75659061,0.00043835,120]
[405961517,1771459938811,-455.82227555,0.00043835,120]